[Event "*** Biggest EVER Titled Tuesday"]
[Site "Chess.com"]
[Date "2018.04.17"]
[Round "3"]
[White "pedromartinez91"]
[Black "Fighterman91"]
[Result "1-0"]
[WhiteElo "2423"]
[BlackElo "2587"]
[TimeControl "180+2"]
[EndTime "13:33:44 PDT"]
[Termination "pedromartinez91 won by resignation"]

1. e4 {[%clk 0:03:01.9]} 1... c5 {[%clk 0:02:59.5]} 2. Nf3 {[%clk 0:03:01.2]}
2... d6 {[%clk 0:03:00.4]} 3. Bb5+ {[%clk 0:03:00.5]} 3... Nd7 {[%clk
0:03:00.7]} 4. d4 {[%clk 0:03:01.2]} 4... cxd4 {[%clk 0:03:02.4]} 5. Qxd4 {[%clk
0:03:02.3]} 5... a6 {[%clk 0:03:04.3]} 6. Bxd7+ {[%clk 0:03:00.7]} 6... Bxd7
{[%clk 0:03:06.2]} 7. c4 {[%clk 0:03:02.3]} 7... Nf6 {[%clk 0:03:06.4]} 8. O-O
{[%clk 0:02:57.6]} 8... g6 {[%clk 0:03:07]} 9. Nc3 {[%clk 0:02:51]} 9... Bg7
{[%clk 0:03:08.3]} 10. Qd3 {[%clk 0:02:51.9]} 10... O-O {[%clk 0:03:08.5]} 11.
h3 {[%clk 0:02:44.7]} 11... Bc6 {[%clk 0:03:09.1]} 12. Bg5 {[%clk 0:02:42.1]}
12... Nd7 {[%clk 0:02:48.3]} 13. Rac1 {[%clk 0:02:37.2]} 13... Nc5 {[%clk
0:02:48.5]} 14. Qe2 {[%clk 0:02:29.7]} 14... Bxc3 {[%clk 0:02:48.1]} 15. bxc3
{[%clk 0:02:26.1]} 15... Nxe4 {[%clk 0:02:44.8]} 16. Bh6 {[%clk 0:02:27]} 16...
Re8 {[%clk 0:02:44.9]} 17. Nd4 {[%clk 0:02:28.6]} 17... Qd7 {[%clk 0:02:20.9]}
18. Rfd1 {[%clk 0:02:24.8]} 18... Nc5 {[%clk 0:02:14]} 19. Nb3 {[%clk
0:02:23.5]} 19... Qf5 {[%clk 0:02:08.6]} 20. Rd4 {[%clk 0:01:59.2]} 20... Qe5
{[%clk 0:01:32.4]} 21. Qd2 {[%clk 0:01:44]} 21... Ne4 {[%clk 0:01:26.8]} 22. Qe3
{[%clk 0:01:40.3]} 22... Nf6 {[%clk 0:01:25.3]} 23. Qd2 {[%clk 0:01:38.6]} 23...
Rac8 {[%clk 0:01:16]} 24. Re1 {[%clk 0:01:38.7]} 24... Qf5 {[%clk 0:01:12.6]}
25. f3 {[%clk 0:01:38.6]} 25... Qh5 {[%clk 0:01:05.7]} 26. Bg5 {[%clk
0:01:31.7]} 26... Kg7 {[%clk 0:00:40.5]} 27. Rh4 {[%clk 0:01:29.5]} 27... Qxh4
{[%clk 0:00:41.1]} 28. Bxh4 {[%clk 0:01:30.2]} 28... Nd7 {[%clk 0:00:42.6]} 29.
Rxe7 {[%clk 0:01:29.3]} 29... Rxe7 {[%clk 0:00:43.2]} 30. Bxe7 {[%clk
0:01:31.2]} 30... Re8 {[%clk 0:00:44.8]} 31. Qxd6 {[%clk 0:01:31.2]} 31... Nf8
{[%clk 0:00:44.5]} 32. Qf6+ {[%clk 0:01:25.2]} 32... Kg8 {[%clk 0:00:45]} 33.
Bxf8 {[%clk 0:01:26.2]} 33... Rxf8 {[%clk 0:00:46.1]} 34. Nd4 {[%clk 0:01:27.9]}
34... Bd7 {[%clk 0:00:47]} 35. c5 {[%clk 0:01:28.6]} 35... Re8 {[%clk
0:00:47.7]} 36. h4 {[%clk 0:01:28.7]} 1-0

[Event "*** Biggest EVER Titled Tuesday"]
[Site "Chess.com"]
[Date "2018.04.17"]
[Round "3"]
[White "AkshatChandra"]
[Black "hilary444"]
[Result "1-0"]
[WhiteElo "2791"]
[BlackElo "2527"]
[TimeControl "180+2"]
[EndTime "13:33:52 PDT"]
[Termination "AkshatChandra won by checkmate"]

1. e4 {[%clk 0:03:01.9]} 1... e5 {[%clk 0:03:00.4]} 2. Nf3 {[%clk 0:03:02.9]}
2... Nc6 {[%clk 0:03:01.6]} 3. Bb5 {[%clk 0:03:04.5]} 3... a6 {[%clk 0:03:02.7]}
4. Ba4 {[%clk 0:03:05.7]} 4... Nf6 {[%clk 0:03:03.7]} 5. O-O {[%clk 0:03:07.2]}
5... Nxe4 {[%clk 0:03:01.5]} 6. d4 {[%clk 0:03:07.6]} 6... b5 {[%clk 0:03:02.8]}
7. Bb3 {[%clk 0:03:09]} 7... d5 {[%clk 0:03:04]} 8. dxe5 {[%clk 0:03:10.7]} 8...
Be6 {[%clk 0:03:05.1]} 9. Qe2 {[%clk 0:03:12.2]} 9... Be7 {[%clk 0:03:02.1]} 10.
Rd1 {[%clk 0:03:12.8]} 10... O-O {[%clk 0:02:39.9]} 11. c4 {[%clk 0:03:13.7]}
11... bxc4 {[%clk 0:02:38.9]} 12. Bxc4 {[%clk 0:03:14.6]} 12... Na5 {[%clk
0:02:19.6]} 13. Bd3 {[%clk 0:03:12.5]} 13... Nc5 {[%clk 0:02:13.4]} 14. Bc2
{[%clk 0:03:05.3]} 14... Qb8 {[%clk 0:01:49.6]} 15. Nc3 {[%clk 0:03:04.1]} 15...
c6 {[%clk 0:01:37.2]} 16. Nd4 {[%clk 0:03:04.6]} 16... Nd7 {[%clk 0:01:29.8]}
17. Bf4 {[%clk 0:02:20.7]} 17... c5 {[%clk 0:01:07.2]} 18. Nf5 {[%clk
0:02:10.8]} 18... Bd8 {[%clk 0:00:42.5]} 19. Nxd5 {[%clk 0:02:00.7]} 19... Qxb2
{[%clk 0:00:42.7]} 20. Rdb1 {[%clk 0:00:55.3]} 20... Qa3 {[%clk 0:00:25.5]} 21.
Bc1 {[%clk 0:00:56.1]} 21... Qxc1+ {[%clk 0:00:14.6]} 22. Rxc1 {[%clk 0:00:58]}
22... Bxd5 {[%clk 0:00:16]} 23. Qd3 {[%clk 0:00:58.4]} 23... Bc4 {[%clk
0:00:15.3]} 24. Ne7+ {[%clk 0:00:56.9]} 24... Bxe7 {[%clk 0:00:14.6]} 25. Qxh7#
{[%clk 0:00:58.8]} 1-0

[Event "*** Biggest EVER Titled Tuesday"]
[Site "Chess.com"]
[Date "2018.04.17"]
[Round "3"]
[White "ChessicallyInclined"]
[Black "Karina_Oparina"]
[Result "0-1"]
[WhiteElo "2149"]
[BlackElo "2144"]
[TimeControl "180+2"]
[EndTime "13:34:04 PDT"]
[Termination "Karina_Oparina won by resignation"]

1. d4 {[%clk 0:03:01.9]} 1... Nf6 {[%clk 0:02:40.5]} 2. c4 {[%clk 0:03:02.1]}
2... e6 {[%clk 0:02:40.2]} 3. Nc3 {[%clk 0:03:03.2]} 3... Bb4 {[%clk 0:02:40.1]}
4. e3 {[%clk 0:03:03.3]} 4... c5 {[%clk 0:02:40.8]} 5. Ne2 {[%clk 0:03:02.6]}
5... cxd4 {[%clk 0:02:40.1]} 6. exd4 {[%clk 0:03:04.5]} 6... d5 {[%clk 0:02:41]}
7. a3 {[%clk 0:03:04.8]} 7... Bxc3+ {[%clk 0:02:41.4]} 8. Nxc3 {[%clk
0:03:06.7]} 8... O-O {[%clk 0:02:42.2]} 9. Be3 {[%clk 0:03:06.7]} 9... Nc6
{[%clk 0:02:42]} 10. Be2 {[%clk 0:02:39.2]} 10... b6 {[%clk 0:02:38.2]} 11. O-O
{[%clk 0:02:21.8]} 11... Bb7 {[%clk 0:02:37.5]} 12. Rc1 {[%clk 0:01:47.4]} 12...
dxc4 {[%clk 0:02:35.2]} 13. Bxc4 {[%clk 0:01:47.7]} 13... Ne7 {[%clk 0:02:36]}
14. Bg5 {[%clk 0:01:39.9]} 14... Ned5 {[%clk 0:02:31.8]} 15. Bd3 {[%clk
0:01:37.4]} 15... h6 {[%clk 0:02:31.2]} 16. Bh4 {[%clk 0:01:37.7]} 16... Nf4
{[%clk 0:01:56.5]} 17. Ne4 {[%clk 0:00:58.9]} 17... g5 {[%clk 0:01:07.2]} 18.
Nxg5 {[%clk 0:00:16.7]} 18... hxg5 {[%clk 0:01:05.6]} 19. Bxg5 {[%clk
0:00:18.6]} 19... Qd5 {[%clk 0:00:59.7]} 20. Qf3 {[%clk 0:00:09.3]} 20... Qxf3
{[%clk 0:00:42.4]} 21. gxf3 {[%clk 0:00:10]} 21... Nh3+ {[%clk 0:00:42.3]} 22.
Kg2 {[%clk 0:00:09.3]} 22... Nxg5 {[%clk 0:00:42.4]} 0-1

[Event "*** Biggest EVER Titled Tuesday"]
[Site "Chess.com"]
[Date "2018.04.17"]
[Round "3"]
[White "Daniela_Movileanu"]
[Black "saraswathii"]
[Result "1-0"]
[WhiteElo "2398"]
[BlackElo "2268"]
[TimeControl "180+2"]
[EndTime "13:34:05 PDT"]
[Termination "Daniela_Movileanu won by resignation"]

1. e4 {[%clk 0:02:23.8]} 1... c5 {[%clk 0:02:59.4]} 2. Nf3 {[%clk 0:02:24.2]}
2... e6 {[%clk 0:02:59.4]} 3. d4 {[%clk 0:02:25]} 3... cxd4 {[%clk 0:03:01.3]}
4. Nxd4 {[%clk 0:02:26.3]} 4... Nf6 {[%clk 0:03:02.8]} 5. Bd3 {[%clk 0:02:24.2]}
5... Nc6 {[%clk 0:03:03.2]} 6. Nxc6 {[%clk 0:02:19]} 6... bxc6 {[%clk
0:03:03.8]} 7. O-O {[%clk 0:02:20.1]} 7... d5 {[%clk 0:03:02.8]} 8. e5 {[%clk
0:02:20.9]} 8... Nd7 {[%clk 0:03:03.2]} 9. Bf4 {[%clk 0:02:21.9]} 9... g6 {[%clk
0:03:01]} 10. Nc3 {[%clk 0:02:21.9]} 10... Bg7 {[%clk 0:03:01.8]} 11. Qe2 {[%clk
0:02:22.3]} 11... O-O {[%clk 0:03:02.4]} 12. Na4 {[%clk 0:02:22.2]} 12... a5
{[%clk 0:02:57.7]} 13. c4 {[%clk 0:02:22.6]} 13... Ba6 {[%clk 0:02:56]} 14. Rac1
{[%clk 0:02:23.1]} 14... Rb8 {[%clk 0:02:53.8]} 15. b3 {[%clk 0:02:23.1]} 15...
Qe7 {[%clk 0:02:36.7]} 16. Rfe1 {[%clk 0:02:23.6]} 16... Rfc8 {[%clk 0:02:36.6]}
17. Qd2 {[%clk 0:02:23.7]} 17... Qb4 {[%clk 0:02:30]} 18. Qc2 {[%clk 0:02:18.3]}
18... Qb7 {[%clk 0:02:10.4]} 19. h4 {[%clk 0:01:58.2]} 19... h5 {[%clk
0:01:56.4]} 20. Re2 {[%clk 0:01:58.3]} 20... Re8 {[%clk 0:01:36.7]} 21. Rce1
{[%clk 0:01:58.5]} 21... Qc7 {[%clk 0:01:31.6]} 22. Qc3 {[%clk 0:01:56.3]} 22...
Qd8 {[%clk 0:01:31]} 23. Bg5 {[%clk 0:01:55.4]} 23... Qc7 {[%clk 0:01:29.6]} 24.
Bd2 {[%clk 0:01:51.7]} 24... c5 {[%clk 0:01:24.4]} 25. cxd5 {[%clk 0:01:39.4]}
25... exd5 {[%clk 0:01:23.2]} 26. Bxa6 {[%clk 0:01:38.7]} 26... Bxe5 {[%clk
0:01:21.3]} 27. Qc2 {[%clk 0:01:34.6]} 27... Re6 {[%clk 0:01:11.5]} 28. Bd3
{[%clk 0:01:31.6]} 28... Rbe8 {[%clk 0:01:11.1]} 29. Be3 {[%clk 0:01:13.4]}
29... d4 {[%clk 0:01:08.6]} 30. Bg5 {[%clk 0:01:12]} 30... Bh2+ {[%clk
0:01:04.7]} 31. Kh1 {[%clk 0:01:12.7]} 31... Ne5 {[%clk 0:01:00.1]} 32. Bc4
{[%clk 0:01:06.4]} 32... Nxc4 {[%clk 0:00:52.1]} 33. Qxc4 {[%clk 0:01:06.4]} 1-0

[Event "*** Biggest EVER Titled Tuesday"]
[Site "Chess.com"]
[Date "2018.04.17"]
[Round "3"]
[White "Alopekos"]
[Black "walkingcreep"]
[Result "1-0"]
[WhiteElo "2299"]
[BlackElo "2423"]
[TimeControl "180+2"]
[EndTime "13:34:07 PDT"]
[Termination "Alopekos won by checkmate"]

1. e4 {[%clk 0:03:01.9]} 1... c5 {[%clk 0:02:58.4]} 2. Nf3 {[%clk 0:03:02.6]}
2... e6 {[%clk 0:02:59.5]} 3. d4 {[%clk 0:03:03.5]} 3... cxd4 {[%clk 0:03:01]}
4. Nxd4 {[%clk 0:03:05.4]} 4... Nf6 {[%clk 0:03:02.1]} 5. Nc3 {[%clk 0:03:04.7]}
5... d6 {[%clk 0:03:02.8]} 6. Be3 {[%clk 0:03:05.2]} 6... a6 {[%clk 0:03:02.8]}
7. a4 {[%clk 0:03:03.8]} 7... Be7 {[%clk 0:03:01.7]} 8. Be2 {[%clk 0:03:04.6]}
8... O-O {[%clk 0:02:59.4]} 9. O-O {[%clk 0:03:05.5]} 9... Nc6 {[%clk
0:02:59.3]} 10. f4 {[%clk 0:03:05.8]} 10... Bd7 {[%clk 0:02:58.1]} 11. Kh1
{[%clk 0:03:04.3]} 11... Rc8 {[%clk 0:02:52.9]} 12. Qe1 {[%clk 0:03:04.7]} 12...
Qc7 {[%clk 0:02:43.9]} 13. Qg3 {[%clk 0:03:03.5]} 13... Kh8 {[%clk 0:02:41.7]}
14. Bd3 {[%clk 0:02:16.3]} 14... Nxd4 {[%clk 0:02:16.6]} 15. Bxd4 {[%clk
0:02:16.4]} 15... Bc6 {[%clk 0:02:06.9]} 16. e5 {[%clk 0:02:15.6]} 16... dxe5
{[%clk 0:01:59.5]} 17. Bxe5 {[%clk 0:01:41.5]} 17... Qb6 {[%clk 0:01:55.4]} 18.
f5 {[%clk 0:00:56.6]} 18... exf5 {[%clk 0:01:28.2]} 19. Bxf5 {[%clk 0:00:50.9]}
19... Rcd8 {[%clk 0:01:29.1]} 20. Bc7 {[%clk 0:00:51.6]} 20... Qxb2 {[%clk
0:01:28.9]} 21. Rfb1 {[%clk 0:00:49.5]} 21... Nh5 {[%clk 0:01:25.1]} 22. Qh3
{[%clk 0:00:24.4]} 22... Bxg2+ {[%clk 0:00:44.6]} 23. Kxg2 {[%clk 0:00:26.3]}
23... Nf4+ {[%clk 0:00:44.1]} 24. Bxf4 {[%clk 0:00:26.1]} 24... Rd2+ {[%clk
0:00:42.3]} 25. Bxd2 {[%clk 0:00:24.8]} 25... Qxc2 {[%clk 0:00:43.7]} 26. Qxh7#
{[%clk 0:00:24.7]} 1-0

[Event "*** Biggest EVER Titled Tuesday"]
[Site "Chess.com"]
[Date "2018.04.17"]
[Round "3"]
[White "ChessMavenYeti"]
[Black "Pudor"]
[Result "0-1"]
[WhiteElo "2094"]
[BlackElo "2205"]
[TimeControl "180+2"]
[EndTime "13:34:08 PDT"]
[Termination "Pudor won by checkmate"]

1. d4 {[%clk 0:03:01.9]} 1... Nf6 {[%clk 0:02:57.9]} 2. c4 {[%clk 0:03:01.4]}
2... d6 {[%clk 0:02:57.9]} 3. Nc3 {[%clk 0:03:01]} 3... e5 {[%clk 0:02:58.7]} 4.
Nf3 {[%clk 0:02:58.6]} 4... exd4 {[%clk 0:02:58.6]} 5. Nxd4 {[%clk 0:02:57.8]}
5... g6 {[%clk 0:02:59.5]} 6. g3 {[%clk 0:02:57.5]} 6... Bg7 {[%clk 0:03:00.8]}
7. Bg2 {[%clk 0:02:58]} 7... O-O {[%clk 0:03:02]} 8. O-O {[%clk 0:02:59.1]} 8...
a5 {[%clk 0:03:03.1]} 9. Bg5 {[%clk 0:02:48.3]} 9... h6 {[%clk 0:03:03.4]} 10.
Bf4 {[%clk 0:02:45.1]} 10... Re8 {[%clk 0:02:57.5]} 11. Rc1 {[%clk 0:02:43.1]}
11... Nbd7 {[%clk 0:02:57.2]} 12. Qd2 {[%clk 0:02:35.6]} 12... g5 {[%clk
0:02:52]} 13. Be3 {[%clk 0:02:09.3]} 13... Ng4 {[%clk 0:02:45.6]} 14. Nf5 {[%clk
0:01:56.7]} 14... Nxe3 {[%clk 0:02:45.3]} 15. Nxe3 {[%clk 0:01:48.7]} 15... Ne5
{[%clk 0:02:41.8]} 16. b3 {[%clk 0:01:41.1]} 16... Bd7 {[%clk 0:02:21.4]} 17.
Bxb7 {[%clk 0:01:40.6]} 17... Ra7 {[%clk 0:02:18.6]} 18. Bd5 {[%clk 0:01:38.8]}
18... Qf6 {[%clk 0:02:11.2]} 19. Ne4 {[%clk 0:01:36.4]} 19... Qg6 {[%clk
0:02:11.9]} 20. Nc3 {[%clk 0:01:25.9]} 20... c6 {[%clk 0:02:09.3]} 21. Bg2
{[%clk 0:01:25.5]} 21... f5 {[%clk 0:02:02.4]} 22. Rfd1 {[%clk 0:01:14.8]} 22...
Bf8 {[%clk 0:02:03]} 23. Qd4 {[%clk 0:01:08.6]} 23... c5 {[%clk 0:01:54.3]} 24.
Bd5+ {[%clk 0:01:04.5]} 24... Kh8 {[%clk 0:01:52.5]} 25. Qd2 {[%clk 0:01:05.4]}
25... f4 {[%clk 0:01:52.5]} 26. Ng2 {[%clk 0:01:02.4]} 26... Qh5 {[%clk
0:01:26.8]} 27. Ne1 {[%clk 0:00:31]} 27... Bg4 {[%clk 0:01:01.3]} 28. f3 {[%clk
0:00:20.7]} 28... fxg3 {[%clk 0:00:59]} 29. fxg4 {[%clk 0:00:21.6]} 29... Qxh2+
{[%clk 0:00:54.9]} 30. Kf1 {[%clk 0:00:22.6]} 30... Qf2# {[%clk 0:00:56.8]} 0-1

[Event "*** Biggest EVER Titled Tuesday"]
[Site "Chess.com"]
[Date "2018.04.17"]
[Round "3"]
[White "FancyPlaySyndrome"]
[Black "GMBenjaminBok"]
[Result "0-1"]
[WhiteElo "2403"]
[BlackElo "2591"]
[TimeControl "180+2"]
[EndTime "13:34:09 PDT"]
[Termination "GMBenjaminBok won by resignation"]

1. e4 {[%clk 0:03:01.9]} 1... c5 {[%clk 0:02:48.5]} 2. Nf3 {[%clk 0:03:02.4]}
2... d6 {[%clk 0:02:48.4]} 3. d4 {[%clk 0:03:03]} 3... cxd4 {[%clk 0:02:50.3]}
4. Nxd4 {[%clk 0:03:01.8]} 4... Nf6 {[%clk 0:02:51.8]} 5. Nc3 {[%clk 0:03:03.2]}
5... a6 {[%clk 0:02:50.9]} 6. Be3 {[%clk 0:03:04.1]} 6... e5 {[%clk 0:02:50.5]}
7. Nb3 {[%clk 0:03:04.8]} 7... Be6 {[%clk 0:02:50.1]} 8. f3 {[%clk 0:03:05.6]}
8... Be7 {[%clk 0:02:51.4]} 9. Qd2 {[%clk 0:03:06.6]} 9... O-O {[%clk
0:02:52.6]} 10. O-O-O {[%clk 0:03:05.4]} 10... Nbd7 {[%clk 0:02:54]} 11. g4
{[%clk 0:03:05.3]} 11... b5 {[%clk 0:02:55.4]} 12. Kb1 {[%clk 0:03:03.5]} 12...
Nb6 {[%clk 0:02:53.8]} 13. g5 {[%clk 0:02:57.6]} 13... Nh5 {[%clk 0:02:51]} 14.
Rg1 {[%clk 0:02:56.9]} 14... Rc8 {[%clk 0:02:50.8]} 15. Nd5 {[%clk 0:02:39.6]}
15... Bxd5 {[%clk 0:02:45.9]} 16. exd5 {[%clk 0:02:40.8]} 16... Nc4 {[%clk
0:02:47.2]} 17. Bxc4 {[%clk 0:02:36.6]} 17... bxc4 {[%clk 0:02:49.1]} 18. Nc1
{[%clk 0:02:38.1]} 18... c3 {[%clk 0:02:40.9]} 19. bxc3 {[%clk 0:02:39.1]} 19...
Qc7 {[%clk 0:02:38.8]} 20. Nb3 {[%clk 0:02:34.3]} 20... Qxc3 {[%clk 0:02:26.9]}
21. Qxc3 {[%clk 0:02:26.1]} 21... Rxc3 {[%clk 0:02:28.8]} 22. Rge1 {[%clk
0:02:27.5]} 22... Rfc8 {[%clk 0:02:27.1]} 23. Re2 {[%clk 0:02:27]} 23... Bd8
{[%clk 0:02:21.9]} 24. Rd3 {[%clk 0:02:18.1]} 24... g6 {[%clk 0:02:00.5]} 25.
Kb2 {[%clk 0:02:14.5]} 25... R3c4 {[%clk 0:02:00]} 26. c3 {[%clk 0:02:06.8]}
26... Nf4 {[%clk 0:01:46.2]} 27. Bxf4 {[%clk 0:02:07.2]} 27... Rxf4 {[%clk
0:01:48.1]} 28. Rg2 {[%clk 0:01:53.2]} 28... Rf5 {[%clk 0:01:44.3]} 29. h4
{[%clk 0:01:52]} 29... Rc4 {[%clk 0:01:43.8]} 30. Rg4 {[%clk 0:01:52.4]} 30...
Rff4 {[%clk 0:01:29.7]} 31. Nd2 {[%clk 0:01:23.8]} 31... Rxg4 {[%clk 0:01:28.4]}
32. fxg4 {[%clk 0:01:25.7]} 32... Rxg4 {[%clk 0:01:29.4]} 33. Rh3 {[%clk
0:01:27.6]} 33... h6 {[%clk 0:01:25.7]} 34. gxh6 {[%clk 0:01:13]} 34... Rxh4
{[%clk 0:01:24.5]} 35. Rg3 {[%clk 0:01:05.2]} 35... Rh2 {[%clk 0:01:04.6]} 36.
Kc1 {[%clk 0:01:02.8]} 36... Kh7 {[%clk 0:00:57.9]} 37. Nc4 {[%clk 0:00:58]}
37... Be7 {[%clk 0:00:53.8]} 0-1

[Event "*** Biggest EVER Titled Tuesday"]
[Site "Chess.com"]
[Date "2018.04.17"]
[Round "3"]
[White "HarutyunianTigranK"]
[Black "Kangoroo3000"]
[Result "1-0"]
[WhiteElo "2694"]
[BlackElo "2432"]
[TimeControl "180+2"]
[EndTime "13:34:10 PDT"]
[Termination "HarutyunianTigranK won by resignation"]

1. c4 {[%clk 0:02:59.9]} 1... e5 {[%clk 0:03:00.7]} 2. Nc3 {[%clk 0:03:01.1]}
2... d6 {[%clk 0:03:01.4]} 3. Nf3 {[%clk 0:03:00.2]} 3... f5 {[%clk 0:03:01.9]}
4. g3 {[%clk 0:02:59.2]} 4... Nf6 {[%clk 0:03:00.9]} 5. d4 {[%clk 0:02:59.4]}
5... e4 {[%clk 0:03:01.7]} 6. Nh4 {[%clk 0:03:00.3]} 6... Be7 {[%clk 0:03:01.8]}
7. Bg5 {[%clk 0:03:01.1]} 7... O-O {[%clk 0:03:02.2]} 8. e3 {[%clk 0:03:01.1]}
8... c6 {[%clk 0:03:02.6]} 9. Ng2 {[%clk 0:02:53.6]} 9... h6 {[%clk 0:03:01.4]}
10. Bxf6 {[%clk 0:02:54.2]} 10... Bxf6 {[%clk 0:03:03.3]} 11. h4 {[%clk
0:02:52.7]} 11... Be6 {[%clk 0:02:49.7]} 12. Nf4 {[%clk 0:02:53.1]} 12... Bf7
{[%clk 0:02:50.9]} 13. Bh3 {[%clk 0:02:47.9]} 13... g6 {[%clk 0:02:31]} 14. h5
{[%clk 0:02:48.2]} 14... g5 {[%clk 0:02:30.2]} 15. Ng6 {[%clk 0:02:49.4]} 15...
Bxc4 {[%clk 0:01:47]} 16. Nxf8 {[%clk 0:02:44.7]} 16... Qxf8 {[%clk 0:01:48.9]}
17. Bxf5 {[%clk 0:02:45.3]} 17... d5 {[%clk 0:01:50]} 18. Qg4 {[%clk 0:02:36.1]}
18... Na6 {[%clk 0:01:34.2]} 19. a3 {[%clk 0:02:28.1]} 19... b5 {[%clk
0:01:29.9]} 20. Bd7 {[%clk 0:01:54.6]} 20... b4 {[%clk 0:01:20.8]} 21. Qe6+
{[%clk 0:01:45.1]} 21... Kg7 {[%clk 0:00:55]} 22. Nxe4 {[%clk 0:01:44.8]} 22...
bxa3 {[%clk 0:00:11.4]} 23. bxa3 {[%clk 0:01:23.3]} 23... dxe4 {[%clk
0:00:10.4]} 24. Qxc4 {[%clk 0:01:23.5]} 24... Nc7 {[%clk 0:00:07]} 25. Qxc6
{[%clk 0:01:23.3]} 25... Qd8 {[%clk 0:00:05.8]} 26. Qxe4 {[%clk 0:01:17.9]}
26... Rb8 {[%clk 0:00:06]} 27. O-O {[%clk 0:01:16.1]} 27... Qxd7 {[%clk
0:00:07]} 28. Qg6+ {[%clk 0:01:16.6]} 28... Kh8 {[%clk 0:00:07.3]} 29. Qxf6+
{[%clk 0:01:15.7]} 29... Qg7 {[%clk 0:00:07.9]} 1-0

[Event "*** Biggest EVER Titled Tuesday"]
[Site "Chess.com"]
[Date "2018.04.17"]
[Round "3"]
[White "toad"]
[Black "Makalexa"]
[Result "1-0"]
[WhiteElo "2219"]
[BlackElo "2106"]
[TimeControl "180+2"]
[EndTime "13:34:11 PDT"]
[Termination "toad won by resignation"]

1. d4 {[%clk 0:03:01.9]} 1... Nf6 {[%clk 0:02:59.2]} 2. c4 {[%clk 0:03:03.3]}
2... g6 {[%clk 0:02:59.3]} 3. g3 {[%clk 0:03:04]} 3... Bg7 {[%clk 0:02:59.9]} 4.
Bg2 {[%clk 0:03:05.1]} 4... c5 {[%clk 0:02:59.8]} 5. d5 {[%clk 0:03:05.9]} 5...
d6 {[%clk 0:02:59.6]} 6. Nc3 {[%clk 0:03:06.8]} 6... O-O {[%clk 0:02:59.6]} 7.
Nf3 {[%clk 0:03:07.6]} 7... a6 {[%clk 0:02:53.3]} 8. a4 {[%clk 0:03:07.9]} 8...
Nbd7 {[%clk 0:02:53.1]} 9. O-O {[%clk 0:03:07.5]} 9... Rb8 {[%clk 0:02:53.1]}
10. Qc2 {[%clk 0:03:03.1]} 10... Nb6 {[%clk 0:02:51.8]} 11. b3 {[%clk
0:02:56.3]} 11... Bf5 {[%clk 0:02:50.8]} 12. Qa2 {[%clk 0:02:19.7]} 12... Ne4
{[%clk 0:02:23.9]} 13. Nxe4 {[%clk 0:02:18.4]} 13... Bxe4 {[%clk 0:02:22.1]} 14.
Bb2 {[%clk 0:02:18.2]} 14... Bxb2 {[%clk 0:02:18.7]} 15. Qxb2 {[%clk 0:02:19.1]}
15... Nd7 {[%clk 0:02:09.7]} 16. Ng5 {[%clk 0:02:10.7]} 16... Bxg2 {[%clk
0:02:01.3]} 17. Kxg2 {[%clk 0:02:12.2]} 17... h6 {[%clk 0:01:59]} 18. Ne4 {[%clk
0:02:06.2]} 18... b5 {[%clk 0:01:58.9]} 19. axb5 {[%clk 0:02:06.1]} 19... axb5
{[%clk 0:02:00.8]} 20. Qd2 {[%clk 0:02:00.6]} 20... bxc4 {[%clk 0:01:52.2]} 21.
bxc4 {[%clk 0:01:46.5]} 21... Kh7 {[%clk 0:01:51.2]} 22. Rfb1 {[%clk 0:01:46.6]}
22... Ne5 {[%clk 0:01:43.1]} 23. Qc3 {[%clk 0:01:31.1]} 23... Rxb1 {[%clk
0:01:41.6]} 24. Rxb1 {[%clk 0:01:31.6]} 24... f5 {[%clk 0:01:39.2]} 25. Nxc5
{[%clk 0:01:31.4]} 25... Qc8 {[%clk 0:01:04.6]} 26. Ne6 {[%clk 0:01:30.9]} 26...
Rf7 {[%clk 0:01:04.9]} 27. c5 {[%clk 0:01:20.2]} 27... g5 {[%clk 0:00:59.6]} 28.
c6 {[%clk 0:00:58.9]} 28... f4 {[%clk 0:00:53.1]} 29. c7 {[%clk 0:00:59.6]}
29... Nd7 {[%clk 0:00:51.8]} 30. Qc2+ {[%clk 0:00:39.6]} 30... Kg8 {[%clk
0:00:49]} 31. Qg6+ {[%clk 0:00:40.4]} 1-0

[Event "*** Biggest EVER Titled Tuesday"]
[Site "Chess.com"]
[Date "2018.04.17"]
[Round "3"]
[White "stalyansky"]
[Black "GadimbayliA"]
[Result "0-1"]
[WhiteElo "2126"]
[BlackElo "2384"]
[TimeControl "180+2"]
[EndTime "13:34:18 PDT"]
[Termination "GadimbayliA won on time"]

1. e4 {[%clk 0:03:01.9]} 1... e6 {[%clk 0:03:00.6]} 2. d4 {[%clk 0:03:02.6]}
2... d5 {[%clk 0:03:01.3]} 3. Nc3 {[%clk 0:03:03.1]} 3... Bb4 {[%clk 0:03:01.2]}
4. exd5 {[%clk 0:03:04.2]} 4... exd5 {[%clk 0:03:01.9]} 5. Bd3 {[%clk
0:03:05.8]} 5... Ne7 {[%clk 0:03:02.9]} 6. Qh5 {[%clk 0:03:05]} 6... Nbc6 {[%clk
0:03:01.6]} 7. a3 {[%clk 0:02:50.1]} 7... Bxc3+ {[%clk 0:02:54.5]} 8. bxc3
{[%clk 0:02:50.3]} 8... Qd6 {[%clk 0:02:56]} 9. Ne2 {[%clk 0:02:49.8]} 9... Be6
{[%clk 0:02:54.6]} 10. Bf4 {[%clk 0:02:49.9]} 10... Qd7 {[%clk 0:02:55]} 11. h3
{[%clk 0:02:33.8]} 11... Bf5 {[%clk 0:02:50.7]} 12. Bxf5 {[%clk 0:02:25.7]}
12... Nxf5 {[%clk 0:02:32.7]} 13. Bxc7 {[%clk 0:02:08.4]} 13... g6 {[%clk
0:02:31.8]} 14. Qf3 {[%clk 0:01:44.1]} 14... Qxc7 {[%clk 0:02:32]} 15. Qxd5
{[%clk 0:01:45]} 15... O-O {[%clk 0:02:32.7]} 16. O-O {[%clk 0:01:43.5]} 16...
Nce7 {[%clk 0:02:30.6]} 17. Qf3 {[%clk 0:01:37.9]} 17... Rac8 {[%clk 0:02:25.9]}
18. Rab1 {[%clk 0:01:37.4]} 18... b6 {[%clk 0:02:25.5]} 19. d5 {[%clk 0:01:27]}
19... Rfd8 {[%clk 0:02:21.4]} 20. Rfd1 {[%clk 0:01:27.8]} 20... Qc5 {[%clk
0:02:21.4]} 21. g4 {[%clk 0:01:13.9]} 21... Ng7 {[%clk 0:02:00.8]} 22. Nf4
{[%clk 0:00:28.6]} 22... g5 {[%clk 0:01:40.4]} 23. Nh5 {[%clk 0:00:20.7]} 23...
Nxh5 {[%clk 0:01:40.9]} 24. gxh5 {[%clk 0:00:21.1]} 24... Nxd5 {[%clk 0:01:41]}
25. c4 {[%clk 0:00:10.7]} 25... Nf4 {[%clk 0:01:32.2]} 26. Rb5 {[%clk
0:00:09.2]} 26... Rxd1+ {[%clk 0:01:23.3]} 27. Qxd1 {[%clk 0:00:09.2]} 27...
Nxh3+ {[%clk 0:01:18.9]} 28. Kh2 {[%clk 0:00:10.1]} 28... Qxc4 {[%clk
0:01:11.7]} 29. Rf5 {[%clk 0:00:07.7]} 29... Qh4 {[%clk 0:01:10.2]} 0-1